bitfinex/quotes_ETHUSD_20241129
["timestamp","ask_amount","ask_price","bid_price","bid_amount"]
[1732903749123,2.78076,3596.2,3595.8,1.01820571]
[1732903749330,0.03125501,3596.1,3595.8,1.01820571]
[1732903750730,2.78056,3596.4,3595.8,3.79919571]
[1732903751024,0.03135736,3596.3,3595.8,3.79919571]
[1732903751227,0.03135736,3596.3,3595.9,0.87143473]
[1732903751459,2.81199736,3596.3,3595.9,0.87143473]
[1732903752140,2.78136,3595.4,3594.6,3.5766]
[1732903752480,0.03084547,3595.3,3594.8,2.78179]
[1732903752972,0.03082057,3595.2,3594.8,2.78179]
[1732903753178,2.7815,3595.2,3594.6,3.57664]
[1732903753332,0.03076937,3595.1,3594.6,0.7947]
[1732903753674,0.03076937,3595.1,3594.2,2.78223]
[1732903753675,2.78208,3594.5,3593.9,0.8016]
[1732903753883,2.78171,3594.9,3593.9,0.8016]
[1732903753884,2.78223,3594.3,3593.9,0.8016]
[1732903754179,2.81263529,3594.2,3593.9,0.8016]
[1732903754342,0.03037529,3594.2,3593.9,1.160026]
[1732903754666,0.54772794,3595.1,3593.9,1.160026]
[1732903754667,2.78199,3594.6,3593.9,1.160026]
[1732903754866,0.03027799,3594.1,3593.9,3.942486]
[1732903755068,2.78204,3594.5,3593.9,3.942486]
[1732903755270,0.03022676,3594.0,3593.9,3.942516]
[1732903755573,2.78182,3594.8,3594.1,2.78231]
[1732903755731,0.02941006,3594.7,3594.2,1.2224826]
[1732903756182,2.78142,3595.3,3594.7,3.33182]
[1732903756334,2.78148,3595.2,3594.7,0.55]
[1732903756767,2.78133,3595.4,3594.7,0.55]
[1732903757072,2.78156,3595.1,3594.7,0.55]
[1732903758188,2.78166,3595.0,3594.6,0.8182]
[1732903758672,0.0295125,3594.9,3594.7,0.55]
[1732903759084,5.56274,3595.4,3594.7,3.33185]
[1732903759262,0.02946128,3594.8,3594.7,3.33185]
[1732903759430,2.78142,3595.3,3594.7,3.33185]
[1732903759632,0.02946128,3594.8,3594.7,3.33185]
[1732903759878,3.33316155,3595.5,3594.9,0.55]
[1732903760235,3.33316155,3595.5,3594.9,2.80952383]
[1732903760668,2.7814,3595.4,3594.8,0.55]
[1732903760939,2.78148,3595.2,3594.7,0.55]
[1732903761962,2.78148,3595.2,3594.7,3.33186]
[1732903762173,2.7814,3595.4,3594.8,0.7292077]
[1732903762397,2.81122192,3595.3,3594.9,0.55]
[1732903764776,2.78148,3595.2,3594.9,0.55]
[1732903764979,0.02866477,3595.1,3594.9,0.55]
[1732903767244,0.02866477,3595.1,3595.0,2.78164]
[1732903767584,2.78107,3595.8,3595.2,2.78148]
[1732903767879,0.02696509,3595.7,3595.2,2.78148]
[1732903768184,2.78107,3595.8,3595.2,2.78148]
[1732903768379,0.02696509,3595.7,3595.0,4.78588577]
[1732903768557,2.78115,3595.7,3595.1,0.55]
[1732903768759,0.0269139,3595.6,3595.2,0.47858858]
[1732903769088,0.0269139,3595.6,3595.2,3.26003858]
[1732903769542,0.0269139,3595.6,3595.2,0.47858858]
[1732903769798,2.78125,3595.5,3595.1,0.55]
[1732903770163,0.02684778,3595.4,3595.1,0.55]
[1732903773085,0.02684778,3595.4,3595.2,2.78141]
[1732903773309,2.78109,3595.8,3595.1,3.3315]
[1732903773494,0.02678449,3595.3,3595.1,3.3315]
[1732903773822,2.7811,3595.7,3595.2,0.68831]
[1732903774023,2.7811,3595.7,3595.1,3.3315]
[1732903777411,0.02602771,3595.6,3595.1,3.3315]
[1732903778791,2.80720771,3595.6,3595.1,0.55]
[1732903779632,2.78125,3595.5,3595.1,0.55]
[1732903780007,2.78154,3595.2,3594.7,0.8281]
[1732903780306,2.78154,3595.2,3594.8,0.55]
[1732903780629,2.78148,3595.3,3594.8,0.55]
[1732903781007,2.80735467,3595.2,3594.8,0.55]
[1732903781208,0.02586467,3595.2,3594.8,0.55]
[1732903781512,2.78146,3595.3,3594.8,0.55]
[1732903781716,0.02586467,3595.2,3594.8,0.55]
[1732903785421,0.02586467,3595.2,3594.9,3.197705]
[1732903785743,2.78133,3595.4,3594.9,3.197705]
[1732903786255,0.02586532,3595.3,3594.9,0.415995]
[1732903787050,2.80732532,3595.3,3594.8,0.55]
[1732903787345,2.78136,3595.4,3594.8,0.55]
[1732903787346,2.80729192,3595.2,3594.8,0.55]
[1732903788508,0.02581192,3595.2,3594.0,0.7634]
[1732903788710,2.78224,3594.3,3594.0,0.7634]
[1732903789023,2.78224,3594.3,3593.7,3.58607]
[1732903789024,0.02504652,3594.2,3593.7,3.58607]
[1732903789246,2.78241,3594.0,3593.8,0.358607]
[1732903789749,0.0248928,3593.9,3593.7,0.8035]
[1732903790068,2.78238,3594.1,3593.7,0.8035]
[1732903790352,2.78242,3594.0,3593.7,0.8035]
[1732903790520,2.78221,3594.3,3593.7,0.8035]
[1732903790724,2.78235,3594.1,3593.8,0.55]
[1732903790907,0.02485387,3594.0,3593.8,0.55]
[1732903791652,2.80727387,3594.0,3593.8,0.55]
[1732903791827,0.02485387,3594.0,3593.8,0.55]
[1732903792212,2.78202,3594.5,3593.7,0.8035]
[1732903792418,0.02479383,3593.9,3593.2,0.8133]
[1732903792738,2.80736599,3593.8,3593.2,0.8133]
[1732903793729,2.80736599,3593.8,3593.3,0.55]
[1732903795614,2.78295,3593.3,3593.2,0.8133]
[1732903795830,2.78304,3593.2,3592.6,3.60296]
[1732903796026,2.78304,3593.2,3592.7,0.638658]
[1732903796763,2.78288,3593.4,3592.0,0.7581]
[1732903796764,2.78328,3592.9,3592.0,0.7581]
[1732903797413,2.78366,3592.4,3592.0,0.7581]
[1732903797617,2.79025167,3593.1,3592.0,0.7581]
[1732903797618,2.7835,3592.6,3592.0,0.7581]
[1732903797814,2.78375,3592.3,3591.7,0.8094]
[1732903798269,2.78358,3592.5,3591.9,2.78399]
[1732903798416,2.78352,3592.6,3592.0,0.637757]
[1732903798619,2.79025167,3593.4,3592.0,0.637757]
[1732903798839,5.78299,3593.3,3591.9,2.78399]
[1732903799055,2.78358,3592.5,3591.9,2.78399]
[1732903799260,2.78358,3592.5,3591.8,3.33411]
[1732903800019,2.78358,3592.5,3591.8,0.55]
[1732903800020,2.78367,3592.4,3591.8,0.55]
[1732903800547,2.78374,3592.3,3591.7,1.35318695]
[1732903800879,2.78362,3592.5,3591.8,2.7841]
[1732903801088,2.78366,3592.4,3591.7,4.13735695]
[1732903801222,2.78366,3592.4,3591.7,1.35318695]
[1732903801570,2.78411,3591.8,3591.4,0.7532]
[1732903802230,2.79025167,3592.3,3591.4,0.7532]
[1732903802447,0.55626091,3592.1,3590.9,0.42998403]
[1732903802742,2.78445,3591.4,3590.9,0.42998403]
[1732903802945,2.78404,3591.9,3590.9,0.42998403]
[1732903803124,2.7846,3591.2,3590.9,0.42998403]
[1732903803331,2.79025167,3591.7,3590.9,0.42998403]
[1732903803332,2.78473,3591.0,3590.9,0.42998403]
[1732903804975,3.3349996,3591.1,3590.9,0.42998403]
[1732903805137,2.78473,3591.0,3590.9,0.42998403]
[1732903806239,0.08,3590.0,3587.1,2.7877]
[1732903806467,2.79025167,3589.6,3588.6,0.2576193]
[1732903806673,2.78576,3589.7,3588.4,2.78674]
[1732903806885,2.78605,3589.4,3588.2,2.78685]
[1732903807168,2.7859,3589.5,3588.3,0.2575276]
[1732903807387,2.78599,3589.4,3588.4,0.2575276]
[1732903807536,5.57203,3589.4,3588.2,2.78687]
[1732903807731,0.335076,3589.6,3588.3,0.25709489]
[1732903808073,2.78605,3589.3,3588.4,0.25709489]
[1732903808276,2.78637,3588.9,3588.5,0.25709489]
[1732903808448,2.78621,3589.2,3587.5,0.12786409]
[1732903808779,0.55446283,3589.7,3587.9,2.78714]
[1732903808941,0.55446283,3589.7,3588.6,2.78657]
[1732903809138,0.55446283,3589.7,3588.7,0.2844441]
[1732903809472,3.34021283,3589.7,3588.8,0.8024]
[1732903809780,3.0565,3590.1,3588.9,0.55]
[1732903809781,2.78583,3589.6,3588.9,0.55]
[1732903810075,2.78605,3589.4,3588.9,0.55]
[1732903810273,2.78589,3589.6,3588.9,0.55]
[1732903811055,2.7859,3589.5,3588.9,0.55]
[1732903811547,2.79025167,3589.8,3588.9,0.55]
[1732903811749,2.78451,3591.3,3589.2,2.78606]
[1732903811750,2.78534,3590.3,3589.2,2.78606]
[1732903811977,5.57538167,3590.5,3589.4,0.55]
[1732903811978,2.78539,3590.2,3589.4,0.55]
[1732903812187,5.7852,3590.4,3589.1,2.78617]
[1732903812492,3.56713904,3590.4,3588.9,0.55]
[1732903812692,3.56713904,3590.4,3589.0,0.25590749]
[1732903812693,2.7858,3589.7,3589.0,0.25590749]
[1732903812846,2.78584,3589.6,3588.9,0.55]
[1732903813051,2.78582,3589.6,3588.9,0.55]
[1732903813453,5.57592167,3589.8,3588.9,0.55]
[1732903813454,5.57593167,3589.8,3588.9,0.55]
[1732903813666,2.78593,3589.5,3588.9,0.55]
[1732903813864,2.78593,3589.5,3588.5,2.78661]
[1732903813865,2.78598,3589.4,3588.6,0.55]
[1732903814188,5.57622167,3589.5,3588.6,0.55]
[1732903814361,5.57616167,3589.5,3588.6,2.78653]
[1732903814549,2.78618,3589.2,3588.5,2.78666]
[1732903815052,2.78618,3589.2,3588.4,0.8313]
[1732903815249,2.79025167,3589.5,3588.4,0.8313]
[1732903815495,0.55759317,3589.7,3588.5,0.28388785]
[1732903815656,0.54554272,3589.5,3589.1,2.78615]
[1732903816489,2.79025167,3589.8,3589.2,2.78608]
[1732903816846,0.5682876,3589.6,3589.2,2.78608]
[1732903817050,0.5682876,3589.6,3589.0,3.33628]
[1732903817251,0.5682876,3589.6,3589.1,0.25606656]
[1732903817565,0.5682876,3589.6,3589.0,3.33628]
[1732903817762,0.5682876,3589.6,3589.1,3.04225626]
[1732903818091,0.5682876,3589.6,3589.1,2.7862]
[1732903818292,0.5682876,3589.6,3589.2,0.25624279]
[1732903818497,0.5682876,3589.6,3589.3,0.25624279]
[1732903818703,0.5682876,3589.6,3589.1,5.57234]
[1732903818995,2.84202,3590.0,3589.4,2.78597]
[1732903819205,1.19826217,3590.0,3589.4,2.78597]
[1732903819414,1.70720666,3590.0,3589.5,3.04213369]
[1732903819562,2.78564,3589.9,3589.6,0.25629369]
[1732903819762,2.78564,3589.9,3589.4,0.55]
[1732903819959,2.78564,3589.9,3589.5,0.25633215]
[1732903820185,2.78588,3589.6,3588.7,0.55]
[1732903820392,2.78591,3589.5,3588.9,0.55]
[1732903820605,0.0565,3589.5,3589.0,0.25653514]
[1732903820807,0.0565,3589.5,3589.1,0.25653514]
[1732903821009,2.84246,3589.5,3589.2,0.25653514]
[1732903821166,2.84246,3589.5,3588.9,0.55]
[1732903821167,2.84246,3589.5,3589.3,0.25653514]
[1732903821366,2.84246,3589.5,3589.4,0.25653514]
[1732903821689,0.62194449,3590.0,3589.4,3.04250514]
[1732903822049,0.56544449,3590.0,3589.7,2.78573]
[1732903822207,3.0,3590.3,3589.8,0.25653514]
[1732903822412,4.14170117,3590.3,3589.9,0.25653514]
[1732903822563,1.14170117,3590.3,3590.0,0.25653514]
[1732903822906,1.14170117,3590.3,3589.3,0.7989]
[1732903822907,2.78534,3590.3,3590.1,0.25683295]
[1732903823084,2.78581,3589.7,3588.9,1.3072]
[1732903823284,2.79025167,3589.8,3589.1,0.55]
[1732903823587,2.786,3589.4,3589.2,0.25677591]
[1732903823785,2.786,3589.4,3589.3,0.25677591]
[1732903824183,2.78584,3589.6,3589.3,0.25677591]
[1732903824368,3.34344917,3589.6,3589.4,0.25677591]
[1732903824714,3.0,3590.2,3589.5,0.25677591]
[1732903825012,2.78548,3590.1,3589.6,0.25677591]
[1732903825219,2.78548,3590.1,3589.7,0.25677591]
[1732903825220,2.78552,3590.0,3589.7,0.25677591]
[1732903825365,2.78548,3590.1,3589.8,0.25677591]
[1732903825561,3.34727221,3590.3,3589.9,0.25677591]
[1732903825822,3.98327739,3590.2,3590.0,0.25677591]
[1732903825995,3.98327739,3590.2,3590.1,0.25782629]
[1732903826727,1.40596716,3591.9,3590.2,0.8666]
[1732903826895,2.78465,3591.2,3590.5,0.55]
[1732903827100,2.78465,3591.2,3590.4,2.78518]
[1732903827101,5.57491167,3591.1,3590.6,0.25782629]
[1732903827296,0.3896,3591.0,3590.7,0.25782629]
[1732903827506,1.35380479,3591.0,3590.8,0.25845751]
[1732903827808,1.35380479,3591.0,3589.2,3.7666]
[1732903827809,3.17433,3591.0,3590.9,0.25845751]
[1732903827981,5.96458167,3591.0,3590.9,0.25845751]
[1732903828183,7.66477497,3591.0,3590.9,0.25845751]
[1732903828388,2.0897933,3591.0,3590.9,0.25845751]
[1732903828588,0.93640813,3591.0,3590.9,0.25845751]
[1732903828996,10.72113813,3591.0,3590.9,0.25845751]
[1732903830725,6.72113813,3591.0,3590.9,0.25845751]
[1732903831027,2.78488,3590.9,3589.9,2.78558]
[1732903831225,2.78488,3590.9,3590.0,0.25943617]
[1732903831408,0.95060181,3590.8,3590.1,0.25943617]
[1732903831609,0.95060181,3590.8,3590.2,0.25943617]
[1732903831610,2.78501,3590.7,3590.2,0.25943617]
[1732903831928,3.73550181,3590.8,3590.3,0.25943617]
[1732903832122,3.73550181,3590.8,3590.4,0.25943617]
[1732903832332,0.95060181,3590.8,3590.5,0.25943617]
[1732903832488,0.05140535,3590.7,3590.6,0.25943617]
[1732903832933,2.78497,3590.7,3590.6,0.25943617]
[1732903833136,5.83620562,3590.7,3590.6,0.25943617]
[1732903833685,9.83620562,3590.7,3590.6,0.25943617]
[1732903834134,2.7858,3589.7,3589.0,2.78627]
[1732903834433,0.05065103,3589.6,3589.0,2.78623]
[1732903834591,3.17985167,3589.9,3589.0,2.78623]
[1732903834791,5.96550167,3589.9,3589.1,2.78618]
[1732903834991,0.05074882,3589.8,3589.1,2.78616]
[1732903835289,2.83646882,3589.8,3589.0,2.78623]
[1732903835492,2.83646882,3589.8,3589.0,3.064853]
[1732903835690,0.05074882,3589.8,3589.5,2.78589]
[1732903835891,2.78575,3589.7,3588.7,2.78649]
[1732903836199,0.3896,3589.4,3588.4,3.58713]
[1732903836532,0.05045083,3589.3,3588.7,2.78645]
[1732903836834,2.78613,3589.2,3588.4,0.8004]
[1732903837136,0.05024823,3589.1,3588.5,2.78666]
[1732903837500,0.05024823,3589.1,3588.6,2.78657]
[1732903837813,0.3896,3589.4,3588.8,2.78641]
[1732903838124,0.05032179,3589.3,3588.9,2.78636]
[1732903838532,2.78583,3589.6,3588.9,2.78636]
[1732903838691,0.05022048,3589.2,3588.9,2.78636]
[1732903838894,2.7859,3589.5,3588.7,2.78647]
[1732903839093,0.05016991,3589.1,3588.7,3.065122]
[1732903839295,2.7861,3589.3,3588.7,0.278652]
[1732903839494,0.050137,3589.0,3588.7,3.065152]
[1732903839729,2.78597,3589.5,3588.7,3.065152]
[1732903839930,0.05008642,3588.9,3588.7,3.065152]
[1732903840160,2.78605,3589.3,3588.7,3.065152]
[1732903840438,2.78615,3589.2,3588.7,0.278652]
[1732903840643,0.05018757,3589.1,3588.3,2.78681]
[1732903840839,2.78622,3589.1,3588.3,2.78681]
[1732903841049,0.050137,3589.0,3588.3,2.78681]
[1732903841200,2.78637,3588.9,3588.3,2.78681]
[1732903841406,0.05004687,3588.8,3588.3,2.78681]
[1732903841639,0.05004687,3588.8,3588.3,3.422127]
[1732903842141,2.78634,3589.0,3588.3,3.422127]
[1732903842318,0.04998195,3588.7,3588.3,3.422127]
[1732903842637,0.04992917,3588.6,3588.3,3.422127]
[1732903842840,2.78636,3588.9,3588.4,0.6209087]
[1732903843148,2.78654,3588.7,3588.0,2.787]
[1732903843307,2.78654,3588.7,3587.9,2.78712]
[1732903843502,0.04991483,3588.6,3587.9,2.78712]
[1732903843706,0.04991483,3588.6,3587.7,3.54365167]
[1732903843941,0.04991483,3588.6,3588.1,2.78692]
[1732903844145,2.78642,3588.9,3588.2,0.278692]
[1732903844318,0.04986425,3588.5,3588.2,0.278692]
[1732903844575,2.78642,3588.9,3588.2,0.278692]
[1732903844737,0.04981366,3588.4,3588.3,2.78676]
[1732903844932,2.78636,3589.0,3588.3,2.78676]
[1732903845249,2.83646657,3588.9,3588.3,2.78676]
[1732903845613,2.83646657,3588.9,3588.3,3.3719972]
[1732903846042,2.83646657,3588.9,3588.4,0.26013386]
[1732903846248,2.83646657,3588.9,3588.5,0.26013386]
[1732903846440,2.78645,3588.8,3588.6,0.26013386]
[1732903846647,2.78645,3588.8,3588.7,0.26013386]
[1732903847082,0.1,3588.3,3586.0,0.809]
[1732903847356,8.98,3589.3,3587.3,0.809]
[1732903847357,3.0,3589.0,3587.3,0.809]
[1732903847508,2.78706,3588.1,3587.3,0.809]
[1732903847706,3.0,3589.0,3587.3,3.59659]
[1732903847951,0.57902517,3588.9,3587.4,0.359659]
[1732903848312,2.78702,3588.1,3587.4,0.359659]
[1732903848835,2.78677,3588.4,3587.4,0.359659]
[1732903849041,2.78693,3588.2,3587.4,0.359659]
[1732903849358,2.787,3588.1,3587.4,0.359659]
[1732903849657,0.04935525,3588.0,3587.4,0.359659]
[1732903849824,0.04935525,3588.0,3587.5,0.3956329]
[1732903850843,2.78708,3588.0,3587.5,0.3956329]
[1732903851060,0.04932009,3587.9,3587.5,0.3956329]
[1732903851554,2.83648009,3587.9,3587.5,0.3956329]
[1732903851713,2.83648009,3587.9,3587.4,0.359659]
[1732903852059,0.04932009,3587.9,3587.4,0.359659]
[1732903852282,0.04932009,3587.9,3587.5,0.02786989]
[1732903852575,5.57690167,3588.6,3587.6,2.78732]
[1732903852873,2.78665,3588.6,3587.4,0.55]
[1732903853045,0.04959607,3588.5,3587.7,0.02786966]
[1732903853230,0.04959607,3588.5,3587.7,0.36439263]
[1732903853431,2.78629,3589.0,3588.2,2.78686]
[1732903853702,0.04812636,3588.9,3588.4,2.78668]
[1732903854132,2.78639,3588.9,3588.3,2.78678]
[1732903854333,0.56353187,3589.2,3588.2,2.78691]
[1732903854334,2.83460345,3588.8,3588.2,2.78691]
[1732903854570,0.04809345,3588.8,3588.2,2.78691]
[1732903854773,0.04809345,3588.8,3588.4,2.78669]
[1732903855008,3.34967187,3589.2,3588.4,2.78669]
[1732903855149,0.04808921,3588.7,3588.5,2.78667]
[1732903855479,0.56353187,3589.2,3588.6,2.78653]
[1732903856177,2.78609,3589.3,3588.7,2.78651]
[1732903856344,2.78609,3589.3,3588.7,3.343836]
[1732903856544,2.78609,3589.3,3588.8,0.75]
[1732903856742,2.78556,3590.0,3588.8,0.75]
[1732903856963,2.78568,3589.8,3589.1,2.78616]
[1732903857166,2.78572,3589.8,3589.2,0.02785793]
[1732903857367,2.83285812,3589.7,3589.1,2.78621]
[1732903857558,2.78585,3589.6,3589.0,3.74841445]
[1732903857966,0.04701809,3589.5,3589.0,3.74841445]
[1732903858344,0.04701809,3589.5,3589.1,2.78619]
[1732903858682,0.04705172,3589.4,3589.1,3.51468745]
[1732903859058,2.78567,3589.8,3589.1,3.51468745]
[1732903859259,2.78584,3589.6,3589.1,0.72847745]
[1732903859455,0.04720339,3589.7,3589.1,0.72847745]
[1732903859756,0.04720339,3589.7,3589.3,2.786]
[1732903860111,2.78564,3589.9,3589.3,2.786]
[1732903860355,0.0471772,3589.6,3589.3,2.786]
[1732903860664,0.04715102,3589.5,3589.1,2.7862]
[1732903860812,0.04715102,3589.5,3589.0,0.55]
[1732903861012,2.786,3589.4,3588.8,6.53641]
[1732903861213,0.0470499,3589.3,3588.8,6.53641]
[1732903861513,0.0470499,3589.3,3588.8,3.75]
[1732903861715,2.8331199,3589.3,3588.8,0.75]
[1732903861926,2.79025167,3589.5,3588.8,0.75]
[1732903862127,0.04700043,3589.2,3588.9,0.02786207]
[1732903862349,2.78595,3589.5,3588.8,3.53638]
[1732903862853,0.04707607,3589.4,3588.9,2.78633]
[1732903863051,0.04707607,3589.4,3588.8,0.75]
[1732903863375,2.78538,3590.2,3589.4,2.78597]
[1732903863569,2.78538,3590.2,3589.6,2.78578]
[1732903864037,2.78538,3590.2,3589.7,0.8239]
[1732903864236,0.04741443,3590.1,3589.7,0.8239]
[1732903864433,2.78528,3590.3,3589.7,0.8239]
[1732903864638,0.04746497,3590.2,3589.7,0.8239]
[1732903865022,2.78521,3590.4,3589.8,2.78565]
[1732903865218,0.04756201,3590.3,3589.7,0.8239]
[1732903865532,2.78513,3590.5,3589.9,2.78558]
[1732903865748,2.79025167,3591.3,3589.9,2.78558]
[1732903865749,0.14687564,3592.2,3590.5,0.8168]
[1732903865923,2.79025167,3592.5,3591.3,0.8168]
[1732903866119,2.83215469,3592.1,3589.9,2.78552]
[1732903866418,2.83215469,3592.1,3589.3,5.71698]
[1732903866419,2.79025167,3591.1,3590.0,0.25908621]
[1732903866648,0.84642517,3591.0,3590.1,0.25908621]
[1732903866820,0.84642517,3591.0,3589.8,0.8168]
[1732903866821,2.78512,3590.5,3589.8,0.8168]
[1732903867035,2.78542,3590.2,3588.8,0.7622]
[1732903867239,2.78542,3590.2,3589.2,2.78609]
[1732903867859,0.03791218,3590.1,3589.2,2.78609]
[1732903868049,2.78513,3590.5,3589.3,0.278609]
[1732903868252,0.03806379,3590.4,3589.3,0.278609]
[1732903868422,0.03806379,3590.4,3589.4,2.78591]
[1732903869024,0.03806379,3590.4,3589.4,2.78598]
[1732903869267,2.78498,3590.7,3589.4,2.78598]
[1732903869446,0.278498,3590.6,3589.4,2.78598]
[1732903869768,2.78528,3590.3,3589.1,2.78619]
[1732903869967,0.03804792,3590.5,3589.1,2.78619]
[1732903869968,3.0,3590.1,3589.1,2.78614]
[1732903870327,0.03779524,3590.0,3589.1,2.78614]
[1732903870861,0.03779524,3590.0,3589.2,2.79025167]
[1732903871031,2.89025167,3591.3,3589.3,2.78598]
[1732903871032,2.78518,3590.5,3589.3,2.78598]
[1732903871232,0.31651206,3590.4,3589.5,2.78589]
[1732903871659,3.10172206,3590.4,3589.5,2.78589]
[1732903872473,2.78557,3590.0,3589.1,2.78617]
[1732903872625,2.78557,3590.0,3589.0,2.78629]
[1732903872626,2.78538,3590.2,3589.3,2.78602]
[1732903872961,0.03787102,3590.1,3589.3,2.78602]
[1732903874076,0.03787102,3590.1,3589.4,2.78597]
[1732903874422,2.78572,3589.8,3588.9,2.78635]
[1732903874624,3.35291,3590.0,3588.4,3.06835167]
[1732903874625,2.78593,3589.5,3588.4,3.06478]
[1732903874830,0.03746977,3589.4,3588.4,2.78668]
[1732903875069,0.03746977,3589.4,3588.7,2.78647]
[1732903875366,0.03746977,3589.4,3588.3,3.53843]
[1732903875666,0.5674,3589.0,3588.2,2.7869]
[1732903875864,3.35369,3589.0,3588.2,2.7869]
[1732903876078,0.03721694,3588.9,3588.2,2.7869]
[1732903876229,0.03721694,3588.9,3588.4,2.78674]
[1732903876428,0.03721694,3588.9,3588.8,2.78644]
[1732903876735,0.5674,3589.6,3589.0,2.78622]
[1732903876941,3.33882523,3589.9,3589.2,2.78613]
[1732903877646,2.78567,3589.8,3589.0,2.78622]
[1732903877857,0.5674,3590.0,3589.0,2.78622]
[1732903878171,0.5674,3590.0,3589.3,2.78599]
[1732903878327,0.902669,3590.0,3589.3,2.78599]
[1732903878752,0.0376572,3589.9,3589.3,2.78599]
[1732903878953,0.0376572,3589.9,3589.1,2.78621]
[1732903879369,2.8232772,3589.9,3589.2,2.78612]
[1732903880304,0.0376572,3589.9,3589.6,2.78581]
[1732903880599,2.78541,3590.2,3589.4,2.78594]
[1732903880901,2.78555,3590.0,3589.4,2.78594]
[1732903881194,2.78555,3590.0,3589.2,2.7861]
[1732903881406,2.82328714,3589.9,3589.2,2.7861]
[1732903881687,2.78567,3589.8,3589.2,2.7861]
[1732903882363,0.03757604,3589.7,3589.0,2.78628]
[1732903882694,2.7856,3589.9,3589.3,2.78604]
[1732903882892,0.03752549,3589.6,3589.3,2.78604]
[1732903883092,2.7856,3589.9,3589.3,2.78604]
[1732903883293,2.78537,3590.2,3588.8,2.78637]
[1732903883294,0.03747493,3589.5,3588.8,2.78637]
[1732903883500,2.82342493,3589.5,3588.7,2.78645]
[1732903883706,0.56092549,3589.4,3588.5,2.78665]
[1732903883998,2.78626,3589.1,3588.3,2.78682]
[1732903884300,3.35765167,3589.8,3588.3,2.78682]
[1732903884301,2.82354533,3589.0,3588.4,0.26022973]
[1732903884615,0.03725533,3589.0,3588.2,0.8222]
[1732903884786,0.03725533,3589.0,3588.5,2.78661]
[1732903885192,0.03725533,3589.0,3588.6,2.78657]
[1732903885392,0.03725533,3589.0,3588.7,2.78647]
[1732903885697,0.03712723,3588.9,3588.7,2.78647]
[1732903886059,2.78607,3589.3,3588.7,2.78647]
[1732903886408,0.03725234,3589.2,3588.7,2.78647]
[1732903886696,0.03725234,3589.2,3588.5,2.78667]
[1732903886856,0.03725234,3589.2,3588.4,2.78675]
[1732903887057,0.03725234,3589.2,3588.6,2.78658]
[1732903887373,2.82339234,3589.2,3588.6,2.78658]
[1732903888288,2.78621,3589.1,3588.4,5.57344]
[1732903888481,0.03714567,3589.0,3588.6,2.78654]
[1732903888692,2.78615,3589.2,3588.6,2.78654]
[1732903888901,0.03719624,3589.1,3588.6,2.78654]
[1732903889259,0.03719624,3589.1,3588.3,0.55]
[1732903889460,2.78607,3589.3,3588.7,2.78652]
[1732903889806,0.0372468,3589.2,3588.7,2.78652]
[1732903890009,0.0372468,3589.2,3588.9,2.78635]
[1732903890237,0.0372468,3589.2,3589.1,2.78621]
[1732903890412,0.5674,3589.8,3589.3,2.78605]
[1732903890756,0.03753644,3589.7,3589.2,2.78608]
[1732903891108,5.78565,3589.9,3589.3,2.78604]
[1732903891309,0.03748589,3589.6,3589.1,2.78618]
[1732903891607,0.03746746,3589.5,3589.2,2.78612]
[1732903891818,3.55520708,3590.0,3588.9,3.343617]
[1732903892023,2.78575,3589.7,3589.1,2.7862]
[1732903892435,0.03765006,3589.6,3589.1,2.7862]
[1732903892633,0.03765006,3589.6,3589.2,2.78612]
[1732903893053,0.03765006,3589.6,3589.2,0.8145]
[1732903893223,0.03765006,3589.6,3589.5,2.7859]
[1732903893420,0.5674,3590.2,3589.5,2.7859]
[1732903893655,0.5674,3590.2,3589.7,2.78574]
[1732903893962,0.03172803,3590.1,3589.8,2.78565]
[1732903894310,2.78529,3590.3,3589.6,2.78577]
[1732903894612,0.03755385,3590.0,3589.7,2.78571]
[1732903895159,0.0375033,3589.9,3589.5,2.78588]
[1732903895365,0.0375033,3589.9,3588.8,2.78637]
[1732903895366,0.0375033,3589.9,3588.9,0.2781]
[1732903895530,0.0375033,3589.9,3589.3,2.78601]
[1732903895931,2.78553,3590.0,3589.3,2.78601]
[1732903896255,2.78564,3589.9,3589.3,2.78601]
[1732903898368,0.03742547,3589.7,3589.5,2.78583]
[1732903898567,2.78551,3590.0,3589.5,2.78583]
[1732903898782,0.03737492,3589.6,3589.4,2.78598]
[1732903898991,2.78551,3590.0,3589.4,2.78598]
[1732903899184,0.03732437,3589.5,3589.4,2.78598]
[1732903899393,2.78546,3590.1,3589.5,2.78587]
[1732903899661,2.78528,3590.3,3589.5,2.78587]
[1732903899662,2.78553,3590.0,3589.5,2.78587]
[1732903899869,2.78553,3590.0,3589.3,2.78599]
[1732903900214,2.78553,3590.0,3589.4,2.78597]
[1732903900706,0.03752657,3589.9,3589.4,2.78597]
[1732903901002,0.03752657,3589.9,3589.2,2.78611]
[1732903901003,2.82312657,3589.9,3589.2,2.78611]
[1732903901210,2.82312657,3589.9,3589.3,0.26039519]
[1732903901512,2.82312657,3589.9,3589.2,2.78611]
[1732903901716,2.82312657,3589.9,3589.3,0.26041531]
[1732903901912,2.82312657,3589.9,3589.2,2.78611]
[1732903902116,2.82312657,3589.9,3589.3,0.26041266]
[1732903902413,0.03752657,3589.9,3589.4,2.78592]
[1732903902714,2.78537,3590.2,3589.4,2.78592]
[1732903902874,0.03747602,3589.8,3588.8,3.59997]
[1732903903075,2.78527,3590.4,3589.7,2.78574]
[1732903903292,0.03772873,3590.3,3589.9,2.78557]
[1732903903701,0.03772873,3590.3,3589.8,2.78564]
[1732903904307,0.03772873,3590.3,3589.9,2.78558]
[1732903904617,0.03772873,3590.3,3589.8,2.78564]
[1732903904914,0.03772873,3590.3,3589.6,2.78582]
[1732903905114,2.78558,3590.0,3589.2,2.7861]
[1732903905328,0.7327688,3590.3,3588.6,2.78657]
[1732903905329,2.78594,3589.5,3588.6,2.78657]
[1732903905508,2.78594,3589.5,3588.9,2.7863]